fUST/lending_fUST_20251117
["ID","MTS","AMOUNT","RATE_DAILY","PERIOD"]
[394202969,1763376641198,-151.0,0.000248,7]
[394202971,1763376641207,-151.0,0.000248,7]
[394202973,1763376641217,-534.0,0.000248,14]
[394202974,1763376641226,-151.0,0.000248,7]
[394202975,1763376641236,-151.0,0.000248,7]
[394202976,1763376641245,-151.0,0.000248,7]
[394202977,1763376641254,-400.67432439,0.000248,7]
[394202978,1763376641264,-2315.228455,0.000248,7]
[394202979,1763376641273,-345.07192,0.000248,7]
[394202980,1763376641282,-2315.228455,0.000248,7]
[394202981,1763376641291,-345.07192,0.000248,7]
[394202982,1763376641300,-2315.228455,0.000248,7]
[394202983,1763376641368,-345.07192,0.000248,7]
[394202984,1763376641378,-2315.228455,0.000248,7]
[394202985,1763376641387,-345.07192,0.000248,7]
[394202986,1763376641397,-159.828821,0.000248,7]
[394202987,1763376641407,-159.828821,0.000248,7]
[394202988,1763376641416,-519.979803,0.000248,2]
[394202989,1763376641426,-159.828821,0.000248,7]
[394202990,1763376641435,-519.979803,0.000248,2]
[394202991,1763376641444,-159.828821,0.000248,7]
[394202992,1763376641454,-519.979803,0.000248,2]
[394202993,1763376641463,-519.979803,0.000248,2]
[394202994,1763376641472,-251.997791,0.000248,7]
[394202995,1763376641481,-251.997791,0.000248,7]
[394202996,1763376641491,-251.997791,0.000248,7]
[394202997,1763376641500,-251.997791,0.000248,7]
[394202998,1763376641509,-200.0,0.000248,7]
[394202999,1763376641519,-200.0,0.000248,7]
[394203000,1763376641528,-200.0,0.000248,7]
[394203001,1763376641537,-200.0,0.000248,7]
[394203002,1763376641546,-200.0,0.000248,7]
[394203003,1763376641557,-215.57276646,0.000248,2]
[394203004,1763376641566,-151.0,0.000248,7]
[394203005,1763376641575,-151.0,0.000248,7]
[394203006,1763376641586,-151.0,0.000248,7]
[394203007,1763376641595,-151.0,0.000248,7]
[394203009,1763376641604,-151.0,0.000248,7]
[394203010,1763376641614,-151.0,0.000248,3]
[394203011,1763376641623,-151.0,0.000248,3]
[394203012,1763376641633,-151.0,0.000248,3]
[394203013,1763376641642,-151.0,0.000248,3]
[394203014,1763376641652,-155.865449,0.000248,3]
[394203015,1763376641661,-151.0,0.000248,7]
[394203017,1763376641671,-435.59980476,0.00024873,2]
[394203018,1763376641680,-203.21851301,0.00024899,2]
[394203020,1763376641689,-151.0,0.000249,7]
[394203021,1763376641699,-151.0,0.000249,7]
[394203022,1763376641708,-151.0,0.000249,7]
[394203023,1763376641718,-151.0,0.000249,7]
[394203024,1763376641727,-151.0,0.000249,7]
[394203025,1763376641737,-160.859447,0.000249,7]
[394203026,1763376641750,-151.0,0.000249,7]
[394203027,1763376641759,-151.0,0.000249,7]
[394203028,1763376641768,-151.0,0.000249,7]
[394203029,1763376641778,-151.0,0.000249,7]
[394203030,1763376641787,-151.0,0.000249,7]
[394203031,1763376641796,-151.0,0.000249,7]
[394203032,1763376641804,-570.603194,0.000249,7]
[394203033,1763376641814,-570.603194,0.000249,7]
[394203034,1763376641826,-570.603194,0.000249,7]
[394203035,1763376641835,-570.603194,0.000249,7]
[394203036,1763376641844,-331.726105,0.000249,2]
[394203037,1763376641853,-151.0,0.000249,7]
[394203038,1763376641862,-158.419537,0.000249,7]
[394203039,1763376641881,-2315.228455,0.000249,7]
[394203040,1763376641897,-345.07192,0.000249,7]
[394203041,1763376641913,-2315.228455,0.000249,7]
[394203042,1763376641930,-345.07192,0.000249,7]
[394203043,1763376641948,-2315.228455,0.000249,7]
[394203044,1763376641967,-345.07192,0.000249,7]
[394203045,1763376641984,-2315.228455,0.000249,7]
[394203046,1763376641999,-345.07192,0.000249,7]
[394203047,1763376642017,-1000.0,0.000249,2]
[394203048,1763376642032,-1000.0,0.000249,2]
[394203049,1763376642045,-1000.0,0.000249,2]
[394203050,1763376642059,-346.41435785,0.000249,2]
[394203051,1763376642076,-159.828821,0.000249,7]
[394203052,1763376642092,-159.828821,0.000249,7]
[394203053,1763376642110,-519.979803,0.000249,2]
[394203054,1763376642123,-159.828821,0.000249,7]
[394203055,1763376642136,-519.979803,0.000249,2]
[394203056,1763376642152,-159.828821,0.000249,7]
[394203057,1763376642165,-519.979803,0.000249,2]
[394203058,1763376642179,-519.979803,0.000249,2]
[394203059,1763376642192,-251.997791,0.000249,7]
[394203060,1763376642204,-251.997791,0.000249,7]
[394203061,1763376642218,-251.997791,0.000249,7]
[394203062,1763376642232,-251.997791,0.000249,7]
[394203063,1763376642245,-178189.0063418,0.000249,2]
[394203064,1763376642408,-952.16945317,0.000249,2]
[394203065,1763376642424,-701.99014555,0.000249,2]
[394203066,1763376642436,-7764.91167462,0.000249,2]
[394203067,1763376642578,-281.04,0.000249,2]
[394203068,1763376642664,-532.5,0.000249,2]
[394203069,1763376642676,-31583.01177929,0.000249,2]
[394203072,1763376643262,-71.14388853,0.000249,2]
[394203075,1763376643442,-500.0,0.00015921,2]
[394203076,1763376643452,-2253.29300025,0.000249,2]
[394203087,1763376756348,-310.15941068,0.00014646,2]
[394203088,1763376761174,-167.38889056,0.00014646,2]
[394203089,1763376762821,-175.52271418,0.00014646,2]
[394203090,1763376766057,-300.0,0.00014646,2]
[394203091,1763376790852,224.7371264,0.00025278,120]
[394203092,1763376860790,-62.53525845,0.00014646,2]
[394203093,1763376860815,-186.41088735,0.00014696,2]
[394203094,1763376860838,-1200.0,0.00014745,2]
[394203095,1763376860863,-300.0,0.00014745,2]
[394203096,1763376860887,-196.23,0.00014746,2]
[394203097,1763376860913,-500.0,0.00014746,2]
[394203098,1763376860937,-500.0,0.00014746,2]
[394203099,1763376860963,-500.0,0.00014746,2]
[394203100,1763376860992,-500.0,0.00014746,2]
[394203101,1763376861018,-500.0,0.00014746,2]
[394203102,1763376861047,-500.0,0.00014746,2]
[394203103,1763376861071,-500.0,0.00014746,2]
[394203104,1763376861096,-500.0,0.00014746,2]
[394203105,1763376861121,-369.03234305,0.00014746,2]
[394203106,1763376861146,-535.44915833,0.00014746,2]
[394203107,1763376861172,-500.0,0.00014746,2]
[394203108,1763376861197,-500.0,0.00014746,2]
[394203109,1763376861221,-500.0,0.00014746,2]
[394203110,1763376861247,-500.0,0.00014746,2]
[394203111,1763376861271,-500.0,0.00014746,2]
[394203112,1763376861295,-500.0,0.00014746,2]
[394203113,1763376861319,-500.0,0.00014746,2]
[394203114,1763376861343,-500.0,0.00014746,2]
[394203115,1763376861367,-500.0,0.00014746,2]
[394203116,1763376861390,-500.0,0.00014746,2]
[394203117,1763376861414,-500.0,0.00014746,2]
[394203118,1763376861439,-500.0,0.00014746,2]
[394203119,1763376861464,-500.0,0.00014746,2]
[394203120,1763376861488,-500.0,0.00014746,2]
[394203121,1763376861516,-373.34718447,0.00014746,2]
[394203122,1763376861542,-500.0,0.00014746,2]
[394203123,1763376861568,-500.0,0.00014746,2]
[394203124,1763376861592,-500.0,0.00014746,2]
[394203125,1763376861616,-500.0,0.00014746,2]
[394203126,1763376861720,-500.0,0.00014746,2]
[394203127,1763376861745,-500.0,0.00014746,2]
[394203128,1763376861771,-500.0,0.00014746,2]
[394203129,1763376861795,-500.0,0.00014746,2]
[394203130,1763376861822,-500.0,0.00014746,2]
[394203131,1763376861847,-500.0,0.00014746,2]
[394203132,1763376861872,-500.0,0.00014746,2]
[394203133,1763376861900,-500.0,0.00014746,2]
[394203134,1763376861924,-499.99999999,0.00014746,2]
[394203135,1763376861951,-3032.95209033,0.00014746,2]
[394203136,1763376861977,-1244.04307803,0.00014746,2]
[394203137,1763376862433,-1788.9090123,0.00014746,2]
[394203138,1763376862459,-3032.95209033,0.00014746,2]
[394203139,1763376862485,-3032.95209033,0.00014746,2]
[394203140,1763376862510,-3032.95209033,0.00014746,2]
[394203141,1763376862537,-3032.95209033,0.00014746,2]
[394203142,1763376862562,-3032.95209033,0.00014746,2]
[394203143,1763376862587,-3032.95209033,0.00014746,2]
[394203144,1763376862613,-3032.95209033,0.00014746,2]
[394203145,1763376862639,-1980.42635539,0.00014746,2]
[394203146,1763376878061,352.0,0.00032877,120]
[394203147,1763376906350,-252.19094931,0.00014549,2]
[394203148,1763376981267,-201.97944501,0.00014546,2]
[394203149,1763377133690,2003.0,0.000141,2]
[394203150,1763377161263,-4.53922251,0.00014546,2]
[394203151,1763377161288,-182.6826696,0.00014548,2]
[394203152,1763377161314,-5.78291206,0.00014549,2]
[394203153,1763377161335,-303.20653177,0.00014646,2]
[394203154,1763377164312,-291.21379282,0.00014646,2]
[394203155,1763377166232,-356.36672913,0.00014646,2]
[394203156,1763377168293,-360.54902504,0.00014646,2]
[394203157,1763377169748,-247.80905069,0.00014646,2]
[394203158,1763377172532,-208.78620718,0.00014646,2]
[394203159,1763377175590,-223.81283861,0.00014646,2]
[394203160,1763377177422,-158.11418997,0.00014646,2]
[394203161,1763377181289,-300.0,0.00014646,2]
[394203163,1763377327076,-96.82691565,0.00014646,2]
[394203164,1763377327097,-151.0,0.000147,2]
[394203165,1763377327117,-300.0,0.00014741,2]
[394203166,1763377327137,-452.17308435,0.00014742,2]
[394203168,1763377612423,-310.08935539,0.00014641,2]
[394203169,1763377614364,-300.0,0.00014641,2]
[394203170,1763377616942,-256.9531576,0.00014641,2]
[394203171,1763377618865,-178.11247122,0.00014641,2]
[394203172,1763377620796,-269.37639683,0.00014641,2]
[394203173,1763377622867,-435.49364651,0.00014641,2]
[394203174,1763377624872,-534.1463347,0.00014641,2]
[394203175,1763377686940,-175.49,0.00014535,2]
[394203176,1763377716393,-98.26,0.00014535,2]
[394203177,1763377716416,-73.88556365,0.00014588,2]
[394203178,1763377764186,-105.14345256,0.00014588,2]
[394203179,1763377764208,-300.0,0.00014639,2]
[394203180,1763377764229,-500.0,0.0001464,2]
[394203181,1763377764250,-167.18952389,0.0001464,2]
[394203182,1763377764272,-429.89248256,0.0001464,2]
[394203183,1763377764295,-500.0,0.0001464,2]
[394203184,1763377764315,-203.22701095,0.0001464,2]
[394203185,1763377764339,-500.0,0.0001464,2]
[394203186,1763377764362,-500.0,0.0001464,2]
[394203187,1763377764383,-47.30747256,0.0001464,2]
[394203189,1763377832205,-300.0,0.00014639,2]
[394203190,1763377832215,-300.0,0.00014639,2]
[394203191,1763377832225,-300.0,0.00014639,2]
[394203192,1763377832234,-1200.0,0.00014639,2]
[394203193,1763377832244,-300.0,0.00014639,2]
[394203194,1763377832252,-500.0,0.0001464,2]
[394203195,1763377832262,-452.69252744,0.0001464,2]
[394203196,1763377832271,-500.0,0.0001464,2]
[394203197,1763377832281,-278.46730055,0.0001464,2]
[394203198,1763377832291,-500.0,0.0001464,2]
[394203199,1763377832300,-500.0,0.0001464,2]
[394203200,1763377832309,-500.0,0.0001464,2]
[394203201,1763377832318,-500.0,0.0001464,2]
[394203202,1763377832328,-500.0,0.0001464,2]
[394203203,1763377832337,-500.0,0.0001464,2]
[394203204,1763377832352,-500.0,0.0001464,2]
[394203205,1763377832361,-500.0,0.0001464,2]
[394203206,1763377832370,-500.0,0.0001464,2]
[394203207,1763377832379,-500.0,0.0001464,2]
[394203208,1763377832390,-500.0,0.0001464,2]
[394203209,1763377832399,-500.0,0.0001464,2]
[394203211,1763377832408,-500.0,0.0001464,2]
[394203213,1763377832419,-500.0,0.0001464,2]
[394203215,1763377832428,-183.33986347,0.0001464,2]
[394203216,1763377832437,-500.0,0.0001464,2]
[394203219,1763377832447,-500.0,0.0001464,2]
[394203221,1763377832456,-500.0,0.0001464,2]
[394203222,1763377832465,-500.0,0.0001464,2]
[394203224,1763377832474,-500.0,0.0001464,2]
[394203227,1763377832484,-500.0,0.0001464,2]
[394203229,1763377832493,-500.0,0.0001464,2]
[394203231,1763377832503,-500.0,0.0001464,2]
[394203232,1763377832511,-500.0,0.0001464,2]
[394203234,1763377832520,-500.0,0.0001464,2]
[394203236,1763377832531,-500.0,0.0001464,2]
[394203238,1763377832540,-559.39345232,0.0001464,2]
[394203240,1763377832549,-500.0,0.0001464,2]
[394203242,1763377832557,-500.0,0.0001464,2]
[394203244,1763377832567,-500.0,0.0001464,2]
[394203246,1763377832575,-500.0,0.0001464,2]
[394203248,1763377832584,-500.0,0.0001464,2]
[394203250,1763377832593,-500.0,0.0001464,2]
[394203252,1763377832602,-500.0,0.0001464,2]
[394203254,1763377832611,-500.0,0.0001464,2]
[394203256,1763377832620,-500.0,0.0001464,2]
[394203258,1763377832629,-500.0,0.0001464,2]
[394203260,1763377832639,-500.0,0.0001464,2]
[394203262,1763377832648,-500.0,0.0001464,2]
[394203264,1763377832658,-500.0,0.0001464,2]
[394203266,1763377832667,-500.0,0.0001464,2]
[394203268,1763377832676,-500.0,0.0001464,2]
[394203270,1763377832686,-500.0,0.0001464,2]
[394203272,1763377832695,-500.0,0.0001464,2]
[394203274,1763377832704,-500.0,0.0001464,2]
[394203276,1763377832714,-500.0,0.0001464,2]
[394203278,1763377832723,-500.0,0.0001464,2]
[394203281,1763377832733,-500.0,0.0001464,2]
[394203282,1763377832743,-500.0,0.0001464,2]
[394203284,1763377832752,-500.0,0.0001464,2]
[394203286,1763377832761,-5411.14631771,0.0001464,2]
[394203288,1763377832770,-5411.14631771,0.0001464,2]
[394203290,1763377832781,-5411.14631771,0.0001464,2]
[394203292,1763377832790,-5411.14631771,0.0001464,2]
[394203294,1763377832799,-5411.14631771,0.0001464,2]
[394203296,1763377832808,-5411.14631771,0.0001464,2]
[394203298,1763377832817,-5411.14631771,0.0001464,2]
[394203300,1763377832826,-5411.14631771,0.0001464,2]
[394203302,1763377832835,-5411.14631771,0.0001464,2]
[394203304,1763377832844,-5411.14631771,0.0001464,2]
[394203306,1763377832853,-5411.14631771,0.0001464,2]
[394203308,1763377832861,-5411.14631771,0.0001464,2]
[394203310,1763377832870,-5411.14631771,0.0001464,2]
[394203312,1763377832879,-5411.14631771,0.0001464,2]
[394203314,1763377832888,-5411.14631771,0.0001464,2]
[394203316,1763377832897,-5411.14631771,0.0001464,2]
[394203318,1763377832907,-5411.14631771,0.0001464,2]
[394203320,1763377832916,-5411.14631771,0.0001464,2]
[394203322,1763377832925,-5411.14631771,0.0001464,2]
[394203324,1763377832934,-5411.14631771,0.0001464,2]
[394203326,1763377832944,-5411.14631771,0.0001464,2]
[394203328,1763377832953,-5411.14631771,0.0001464,2]
[394203330,1763377832962,-374.69004335,0.0001464,2]
[394203446,1763377838081,-2012.70208524,0.0001464,2]
[394203453,1763377838135,-616.52065901,0.0001464,2]
[394203455,1763377838146,-1270.57859214,0.0001464,2]
[394203461,1763377838188,-1136.65493797,0.0001464,2]
[394203463,1763377838197,-5411.14631771,0.0001464,2]
[394203465,1763377838207,-5411.14631771,0.0001464,2]
[394203467,1763377838216,-5411.14631771,0.0001464,2]
[394203469,1763377838226,-5411.14631771,0.0001464,2]
[394203471,1763377838235,-5411.14631771,0.0001464,2]
[394203473,1763377838244,-5411.14631771,0.0001464,2]
[394203475,1763377838254,-5411.14631771,0.0001464,2]
[394203477,1763377838263,-5411.14631771,0.0001464,2]
[394203479,1763377838274,-5411.14631771,0.0001464,2]
[394203481,1763377838283,-5411.14631771,0.0001464,2]
[394203482,1763377838292,-5411.14631771,0.0001464,2]
[394203485,1763377838302,-5411.14631771,0.0001464,2]
[394203486,1763377838311,-5411.14631771,0.0001464,2]
[394203488,1763377838320,-5411.14631767,0.0001464,2]
[394203491,1763377838329,-5411.14631767,0.0001464,2]
[394203492,1763377838338,-5411.14631767,0.0001464,2]
[394203495,1763377838349,-5411.14631767,0.0001464,2]
[394203497,1763377838360,-5411.14631767,0.0001464,2]
[394203498,1763377838369,-1111.83927694,0.0001464,2]
[394203501,1763377838379,-2264.45793182,0.00014641,2]
[394203502,1763377838389,-890000.0,0.00014641,2]
[394203504,1763377838398,-500.0,0.00014673,2]
[394203506,1763377838407,-500.0,0.00014673,2]
[394203508,1763377838417,-500.0,0.00014673,2]
[394203511,1763377838427,-500.93977236,0.00014673,2]
[394203512,1763377838437,-501.78202834,0.00014673,2]
[394203514,1763377838447,-500.0,0.00014673,2]
[394203517,1763377838457,-502.15661401,0.00014673,2]
[394203519,1763377838466,-500.0,0.00014673,2]
[394203520,1763377838477,-500.0,0.00014673,2]
[394203522,1763377838488,-151.0,0.00014731,2]
[394203524,1763377838497,-151.0,0.00014731,2]
[394203526,1763377838507,-151.0,0.00014731,2]
[394203529,1763377838517,-151.0,0.00014731,2]
[394203531,1763377838526,-151.0,0.00014731,2]
[394203533,1763377838538,-151.0,0.00014731,2]
[394203535,1763377838548,-151.0,0.00014731,2]
[394203537,1763377838557,-151.0,0.00014731,2]
[394203539,1763377838567,-151.0,0.00014731,2]
[394203540,1763377838576,-151.0,0.00014731,2]
[394203542,1763377838585,-151.0,0.00014731,2]
[394203544,1763377838595,-151.0,0.00014731,2]
[394203546,1763377838603,-151.0,0.00014731,2]
[394203548,1763377838613,-275.61491986,0.00014731,2]
[394203550,1763377838622,-889.0,0.00014738,2]
[394203553,1763377838632,-50000.0,0.00014739,2]
[394203555,1763377838641,-1000.0,0.00014742,2]
[394203556,1763377838651,-1000.0,0.00014742,2]
[394203558,1763377838660,-1000.0,0.00014742,2]
[394203560,1763377838669,-1000.0,0.00014742,2]
[394203562,1763377838680,-1000.76438936,0.00014742,2]
[394203565,1763377838690,-500.0,0.00014773,2]
[394203566,1763377838699,-500.0,0.00014773,2]
[394203569,1763377838709,-500.0,0.00014773,2]
[394203570,1763377838718,-500.0,0.00014773,2]
[394203573,1763377838728,-169.58130387,0.00014773,2]
[394203575,1763377838737,-500.0,0.00014773,2]
[394203577,1763377838747,-500.0,0.00014773,2]
[394203578,1763377838757,-500.0,0.00014773,2]
[394203580,1763377838766,-500.0,0.00014773,2]
[394203582,1763377838776,-501.9597338,0.00014773,2]
[394203584,1763377838788,-500.0,0.00014773,2]
[394203587,1763377838798,-441.96562617,0.00014773,2]
[394203588,1763377838808,-500.0,0.00014773,2]
[394203591,1763377838818,-500.0,0.00014773,2]
[394203593,1763377838827,-500.0,0.00014773,2]
[394203595,1763377838837,-500.0,0.00014773,2]
[394203597,1763377838846,-267.34034832,0.00014773,2]
[394203599,1763377838856,-500.0,0.00014914,2]
[394203601,1763377838865,-160.0,0.00015,2]
[394203602,1763377838875,-300.0,0.00015041,2]
[394203605,1763377838884,-300.0,0.00015041,2]
[394203607,1763377838894,-300.0,0.00015041,2]
[394203609,1763377838904,-300.0,0.00015041,2]
[394203611,1763377838916,-300.0,0.00015041,2]
[394203613,1763377838926,-300.0,0.00015041,2]
[394203615,1763377838936,-300.0,0.00015041,2]
[394203617,1763377838946,-300.0,0.00015041,2]
[394203619,1763377838956,-300.0,0.00015041,2]
[394203621,1763377838965,-300.0,0.00015041,2]
[394203623,1763377838975,-300.0,0.00015041,2]
[394203625,1763377838984,-300.0,0.00015041,2]
[394203627,1763377838994,-300.0,0.00015041,2]
[394203629,1763377839003,-300.0,0.00015041,2]
[394203631,1763377839012,-300.0,0.00015041,2]
[394203633,1763377839022,-600.0,0.00015041,2]
[394203635,1763377839033,-500.0,0.00015188,2]
[394203637,1763377839043,-501.94711302,0.00015221,2]
[394203639,1763377839052,-504.49475929,0.00015221,2]
[394203641,1763377839062,-524.87998137,0.00015221,2]
[394203643,1763377839071,-503.94861877,0.00015221,2]
[394203645,1763377839081,-1090.68055788,0.00015221,2]
[394203647,1763377839091,-500.81441983,0.00015221,2]
[394203649,1763377839101,-100000.0,0.0001532,2]
[394203651,1763377839110,-501.54850908,0.00015321,2]
[394203653,1763377839120,-1000.0,0.00015321,2]
[394203655,1763377839129,-1000.0,0.00015321,2]
[394203657,1763377839139,-436.00854889,0.00015321,2]
[394203659,1763377839149,-301.390223,0.00015321,2]
[394203661,1763377839158,-1000.0,0.00015321,2]
[394203663,1763377839167,-325.78165932,0.00015321,2]
[394203665,1763377839176,-507.23857365,0.00015373,2]
[394203667,1763377839186,-500.0,0.00015373,2]
[394203669,1763377839195,-500.0,0.00015373,2]
[394203671,1763377839204,-502.86159398,0.00015373,2]
[394203673,1763377839214,-500.0,0.00015373,2]
[394203675,1763377839224,-500.0,0.00015373,2]
[394203677,1763377839233,-500.0,0.00015373,2]
[394203679,1763377839242,-500.0,0.00015373,2]
[394203681,1763377839251,-500.0,0.00015373,2]
[394203683,1763377839261,-249.43248286,0.00015373,2]
[394203685,1763377839270,-500.0,0.00015373,2]
[394203687,1763377839281,-500.0,0.00015373,2]
[394203689,1763377839291,-500.0,0.00015373,2]
[394203691,1763377839300,-500.0,0.00015373,2]
[394203700,1763377839380,-500.0,0.00015373,2]
[394203702,1763377839391,-500.0,0.00015373,2]
[394203704,1763377839401,-500.0,0.00015462,2]
[394203706,1763377839410,-295.84533693,0.00015628,2]
[394203708,1763377839419,-500.0,0.00015736,2]
[394203710,1763377839430,-151.0,0.000158,2]
[394203712,1763377839440,-1004.37558909,0.00015868,2]
[394203714,1763377839449,-1500.0,0.00015868,2]
[394203716,1763377839459,-1517.26996116,0.00015868,2]
[394203718,1763377839468,-509.45721812,0.00015921,2]
[394203721,1763377839477,-357.78598318,0.00015921,2]
[394203722,1763377839486,-1000.0,0.00015921,2]
[394203725,1763377839500,-1001.37329497,0.00015921,2]
[394203727,1763377839510,-1000.83212326,0.00015921,2]
[394203729,1763377839519,-1000.0,0.00015921,2]
[394203731,1763377839528,-1001.19443095,0.00015921,2]
[394203733,1763377839539,-1000.0,0.00015921,2]
[394203735,1763377839548,-500.0,0.0001601,2]
[394203737,1763377839557,-300.0,0.00016028,2]
[394203739,1763377839567,-420.0,0.00016028,2]
[394203741,1763377839577,-1680.0,0.00016103,2]
[394203743,1763377839586,-161.367239,0.00016249,2]
[394203745,1763377839597,-500.0,0.00016284,2]
[394203747,1763377839607,-185.90415884,0.00016416,2]
[394203749,1763377839616,-539.21071834,0.00016438,2]
[394203751,1763377839625,-539.21071834,0.00016438,2]
[394203753,1763377839634,-539.21071834,0.00016438,2]
[394203755,1763377839643,-539.21071834,0.00016438,2]
[394203757,1763377839652,-539.21071834,0.00016438,2]
[394203759,1763377839662,-539.21071834,0.00016438,2]
[394203761,1763377839671,-539.21071834,0.00016438,2]
[394203763,1763377839680,-539.21071834,0.00016438,2]
[394203764,1763377839689,-539.21071834,0.00016438,2]
[394203767,1763377839699,-539.21071834,0.00016438,2]
[394203768,1763377839709,-539.21071834,0.00016438,2]
[394203770,1763377839718,-539.21071834,0.00016438,2]
[394203773,1763377839727,-539.21071834,0.00016438,2]
[394203775,1763377839737,-539.21071834,0.00016438,2]
[394203777,1763377839746,-539.21071834,0.00016438,2]
[394203779,1763377839755,-539.21071834,0.00016438,2]
[394203781,1763377839765,-539.21071834,0.00016438,2]
[394203783,1763377839773,-539.21071834,0.00016438,2]
[394203785,1763377839784,-539.21071834,0.00016438,2]
[394203787,1763377839793,-539.21071834,0.00016438,2]
[394203789,1763377839802,-500.0,0.00016438,2]
[394203791,1763377839812,-500.0,0.00016438,2]
[394203793,1763377839820,-500.0,0.00016438,2]
[394203795,1763377839830,-500.0,0.00016438,2]
[394203797,1763377839840,-588.0371519,0.00016438,2]
[394203799,1763377839849,-500.0,0.00016438,2]
[394203801,1763377839859,-500.0,0.00016438,2]
[394203803,1763377839869,-500.0,0.00016438,2]
[394203805,1763377839878,-350.0,0.00016438,2]
[394203808,1763377839888,-500.0,0.00016438,2]
[394203810,1763377839897,-500.0,0.00016438,2]
[394203812,1763377839907,-500.0,0.00016438,2]
[394203814,1763377839916,-500.0,0.00016438,2]
[394203816,1763377839927,-500.0,0.00016438,2]
[394203818,1763377839936,-500.0,0.00016438,2]
[394203821,1763377839950,-500.0,0.00016438,2]
[394203823,1763377839960,-500.0,0.00016438,2]
[394203825,1763377839970,-500.0,0.00016438,2]
[394203827,1763377839979,-500.0,0.00016438,2]
[394203829,1763377839989,-500.0,0.00016438,2]
[394203831,1763377839999,-500.0,0.00016438,2]
[394203833,1763377840008,-500.0,0.00016438,2]
[394203835,1763377840018,-500.0,0.00016438,2]
[394203837,1763377840027,-859.09833187,0.00016438,2]
[394203839,1763377840037,-859.09833187,0.00016438,2]
[394203841,1763377840046,-859.09833187,0.00016438,2]
[394203843,1763377840055,-859.09833187,0.00016438,2]
[394203845,1763377840064,-859.09833187,0.00016438,2]
[394203847,1763377840073,-859.09833187,0.00016438,2]
[394203849,1763377840082,-859.09833187,0.00016438,2]
[394203851,1763377840092,-859.09833187,0.00016438,2]
[394203853,1763377840101,-859.09833187,0.00016438,2]
[394203855,1763377840110,-859.09833187,0.00016438,2]
[394203857,1763377840119,-859.09833187,0.00016438,2]
[394203859,1763377840128,-859.09833187,0.00016438,2]
[394203861,1763377840138,-859.09833187,0.00016438,2]
[394203863,1763377840147,-859.09833187,0.00016438,2]
[394203865,1763377840156,-859.09833187,0.00016438,2]
[394203867,1763377840165,-859.09833187,0.00016438,2]
[394203869,1763377840176,-859.09833187,0.00016438,2]
[394203871,1763377840186,-859.09833187,0.00016438,2]
[394203873,1763377840195,-859.09833187,0.00016438,2]
[394203875,1763377840204,-859.09833187,0.00016438,2]
[394203877,1763377840214,-859.09833187,0.00016438,2]
[394203879,1763377840223,-859.09833187,0.00016438,2]
[394203881,1763377840233,-859.09833187,0.00016438,2]
[394203883,1763377840242,-859.09833187,0.00016438,2]
[394203885,1763377840251,-859.09833187,0.00016438,2]
[394203887,1763377840260,-859.09833187,0.00016438,2]
[394203889,1763377840270,-859.09833187,0.00016438,2]
[394203891,1763377840279,-859.09833187,0.00016438,2]
[394203893,1763377840289,-859.09833187,0.00016438,2]
[394203895,1763377840298,-859.09833187,0.00016438,2]
[394203897,1763377840308,-859.09833187,0.00016438,2]
[394203899,1763377840317,-859.09833187,0.00016438,2]
[394203901,1763377840327,-859.09833187,0.00016438,2]
[394203903,1763377840336,-859.09833187,0.00016438,2]